bitfinex/quotes_SOLUSD_20250131
["timestamp","ask_amount","ask_price","bid_price","bid_amount"]
[1738340785784,0.77611872,239.08,239.0,0.03]
[1738340786697,1.77611872,239.09,239.0,0.03]
[1738340788095,1.0,239.08,239.0,0.03]
[1738340788297,0.77611872,239.07,239.0,0.03]
[1738340788504,1.0,239.05,239.0,0.03]
[1738340788689,0.77611872,239.04,239.0,0.03]
[1738340788873,1.77611872,239.04,239.0,0.03]
[1738340789074,1.0,239.03,238.98,0.03]
[1738340789397,0.77611872,239.02,238.98,0.03]
[1738340789703,0.77611872,239.02,238.92,0.03]
[1738340789704,1.0,239.01,238.92,0.03]
[1738340789872,0.12549,238.99,238.92,0.03]
[1738340790078,0.77611872,238.98,238.92,0.03]
[1738340790586,0.77611872,239.02,238.92,0.03]
[1738340791189,0.77611872,239.04,238.92,0.03]
[1738340791407,0.77611872,239.04,238.93,0.12549]
[1738340791703,0.77611872,239.04,238.94,0.62762843]
[1738340792380,0.77611872,239.05,238.95,4.1849]
[1738340792589,0.77611872,239.05,238.96,0.62763982]
[1738340792795,0.77611872,239.09,238.96,0.62763982]
[1738340793007,1.0,239.08,238.96,0.62763982]
[1738340793305,0.77611872,239.07,238.95,0.62763519]
[1738340794306,0.12549,239.07,238.95,0.62763519]
[1738340794504,0.77611872,239.08,238.96,0.62763133]
[1738340794693,0.77611872,239.08,238.97,0.12549]
[1738340794893,0.77611872,239.08,238.98,0.62753459]
[1738340795202,0.12549,239.1,238.98,0.62753459]
[1738340795406,0.77611872,239.09,238.98,0.62753459]
[1738340796507,0.77611872,239.09,238.99,0.12549]
[1738340796801,0.77611872,239.12,239.0,0.62751266]
[1738340797182,0.12549,239.11,238.99,0.62751303]
[1738340797412,0.77611872,239.1,238.99,0.62751303]
[1738340797698,0.77611872,239.1,238.96,2.29093947]
[1738340797699,1.77611872,239.1,238.96,2.29093947]
[1738340797910,1.77611872,239.1,238.96,1.6634]
[1738340797911,0.12549,239.09,238.96,1.6634]
[1738340798202,0.12549,239.07,238.96,2.29106248]
[1738340798406,0.77611872,239.06,238.96,2.29106248]
[1738340798606,0.12549,239.05,238.96,1.6634]
[1738340798793,0.77611872,239.04,238.92,3.29549]
[1738340799101,0.77611872,239.04,238.93,0.62770221]
[1738340799304,0.77611872,239.04,238.94,0.12549]
[1738340799603,0.12549,239.07,238.95,0.62763016]
[1738340799788,0.12549,239.05,238.92,0.03]
[1738340800106,1.77611872,239.06,238.92,0.03]
[1738340800107,0.12549,239.03,238.92,0.03]
[1738340800289,0.77611872,239.02,238.92,0.03]
[1738340800603,0.12549,239.01,238.92,0.03]
[1738340800813,0.77611872,239.0,238.92,0.03]
[1738340801104,0.12549,238.99,238.92,0.03]
[1738340801302,0.77611872,238.98,238.92,0.03]
[1738340802098,0.77611872,238.98,238.93,0.03]
[1738340802298,0.77611872,238.99,238.93,0.03]
[1738340804506,1.0,238.98,238.93,0.03]
[1738340804710,0.77611872,238.97,238.93,0.03]
[1738340805008,0.12549,238.96,238.93,0.03]
[1738340805192,0.12549,238.94,238.93,0.03]
[1738340805395,0.77611872,238.95,238.93,0.03]
[1738340806215,0.77611872,238.96,238.93,0.03]
[1738340807422,1.77611872,238.96,238.93,0.03]
[1738340807797,0.77611872,238.96,238.93,0.03]
[1738340809314,0.12549,238.93,238.85,0.03]
[1738340809510,0.12549,238.91,238.85,0.03]
[1738340809694,0.77611872,238.9,238.85,0.03]
[1738340811015,1.5602,238.94,238.85,0.03]
[1738340811016,0.77611872,238.93,238.85,0.03]
[1738340811318,0.12549,238.92,238.85,0.03]
[1738340811513,0.77611872,238.91,238.85,0.03]
[1738340813598,0.90160872,238.94,238.85,0.03]
[1738340814022,0.12549,238.92,238.85,0.03]
[1738340814194,0.77611872,238.91,238.85,0.03]
[1738340815129,0.12549,238.9,238.85,0.03]
[1738340815296,0.77611872,238.89,238.85,0.03]
[1738340815497,2.37471872,238.89,238.85,0.03]
[1738340815807,0.12549,238.88,238.85,0.03]
[1738340816020,0.12549,238.86,238.81,0.03]
[1738340816191,0.12549,238.84,238.81,0.03]
[1738340816410,0.77611872,238.83,238.81,0.03]
[1738340816934,0.25098,238.82,238.76,0.03]
[1738340817097,0.77611872,238.81,238.76,0.03]
[1738340817296,1.77611872,238.81,238.76,0.03]
[1738340817522,0.77611872,238.81,238.76,0.03]
[1738340817821,1.77611872,238.81,238.76,0.03]
[1738340818197,1.0,238.8,238.69,0.03]
[1738340818405,1.6,238.78,238.69,0.03]
[1738340818606,0.77611872,238.77,238.69,0.03]
[1738340819215,1.0,238.74,238.69,0.03]
[1738340819417,1.77611872,238.73,238.65,0.03]
[1738340819609,1.12549,238.72,238.65,0.03]
[1738340819813,0.77611872,238.71,238.65,0.03]
[1738340820017,1.12549,238.7,238.65,0.03]
[1738340820332,0.77611872,238.69,238.65,0.03]
[1738340820648,0.77611872,238.74,238.65,0.03]
[1738340821099,0.77611872,238.77,238.65,4.84861379]
[1738340821296,0.12549,238.76,238.65,4.2202]
[1738340821520,0.77611872,238.75,238.65,4.2202]
[1738340821725,0.77611872,238.75,238.66,0.75393039]
[1738340822021,0.77611872,238.78,238.66,0.62844039]
[1738340822524,0.12549,238.77,238.65,0.03]
[1738340822718,0.77611872,238.76,238.65,0.03]
[1738340823930,0.12549,238.72,238.65,0.03]
[1738340824228,0.12549,238.72,238.61,0.03]
[1738340824229,0.12549,238.7,238.61,0.03]
[1738340824524,1.12549,238.68,238.61,0.03]
[1738340824726,0.12549,238.66,238.61,0.03]
[1738340824910,0.12549,238.64,238.57,0.03]
[1738340825222,0.77611872,238.63,238.57,0.03]
[1738340826207,0.12549,238.62,238.57,0.03]
[1738340826523,0.12549,238.6,238.57,0.03]
[1738340826839,0.12549,238.56,238.5,0.03]
[1738340827037,0.12549,238.54,238.46,0.03]
[1738340827204,0.12549,238.5,238.46,0.03]
[1738340827408,0.12549,238.48,238.41,0.2]
[1738340827608,0.77611872,238.47,238.41,0.2]
[1738340827823,0.77611872,238.51,238.41,0.2]
[1738340828319,0.12549,238.5,238.41,0.2]
[1738340828521,0.77611872,238.49,238.41,0.2]
[1738340828730,0.12549,238.48,238.41,0.2]
[1738340828916,0.77611872,238.47,238.41,0.2]
[1738340829515,6.38119,238.41,238.33,0.03]
[1738340829718,6.38119,238.41,238.24,6.91157506]
[1738340829719,0.12549,238.33,238.19,0.62948914]
[1738340829914,1.0,238.38,238.21,0.62963314]
[1738340829915,0.77611872,238.32,238.21,0.62963314]
[1738340830212,1.0,238.38,238.21,0.62963314]
[1738340830213,1.77611872,238.37,238.21,0.62963314]
[1738340830414,0.77611872,238.37,238.21,4.82753314]
[1738340830726,0.77611872,238.4,238.22,0.12549]
[1738340830917,0.77611872,238.4,238.24,0.12549]
[1738340831117,0.77611872,238.45,238.26,0.12549]
[1738340831317,0.12549,238.44,238.28,0.12549]
[1738340831517,0.12549,238.42,238.3,4.1963]
[1738340831706,0.77611872,238.41,238.3,4.1963]
[1738340832122,0.77611872,238.41,238.31,0.62938381]
[1738340832327,0.77611872,238.45,238.31,0.62938381]
[1738340832528,0.12549,238.44,238.3,4.1963]
[1738340832725,0.77611872,238.43,238.31,0.62935972]
[1738340832927,0.77611872,238.43,238.27,14.6891]
[1738340833134,0.77611872,238.43,238.28,0.62934915]
[1738340833309,0.12549,238.42,238.28,0.62934915]
[1738340833515,0.12549,238.4,238.28,0.62934915]
[1738340833731,0.77611872,238.39,238.28,0.62934915]
[1738340833935,0.12549,238.38,238.24,0.12549]
[1738340834233,0.12549,238.36,238.25,0.62946705]
[1738340834530,0.77611872,238.35,238.24,0.62946705]
[1738340834735,0.77611872,238.42,238.27,0.12549]
[1738340834935,0.77611872,238.42,238.28,0.62938141]
[1738340835235,0.25098,238.41,238.24,0.62942398]
[1738340835427,0.25098,238.39,238.24,0.62942398]
[1738340835625,0.25098,238.37,238.23,4.1976]
[1738340835832,0.12549,238.35,238.23,4.1976]
[1738340836136,0.12549,238.33,238.21,4.1979]
[1738340836311,0.12549,238.31,238.21,4.1979]
[1738340836515,0.77611872,238.3,238.21,4.1979]
[1738340836715,0.90160872,238.37,238.22,0.629638]
[1738340836933,0.25098,238.36,238.21,4.1979]
[1738340837135,0.25098,238.34,238.19,0.62954743]
[1738340837324,0.77611872,238.33,238.19,4.82774743]
[1738340837509,0.25098,238.32,238.18,4.1984]
[1738340837717,0.77611872,238.31,238.16,4.1987]
[1738340837917,0.25098,238.3,238.12,4.1995]
[1738340838117,0.25098,238.28,238.13,0.62975879]
[1738340838320,0.77611872,238.27,238.14,0.12549]
[1738340838525,1.0,238.34,238.15,0.62969222]
[1738340838526,0.77611872,238.33,238.15,0.62969222]
[1738340838725,0.25098,238.32,238.15,0.62969222]
[1738340839023,0.12549,238.3,238.21,0.03]
[1738340839229,0.77611872,238.29,238.21,0.03]
[1738340839442,0.77611872,238.34,238.21,0.03]
[1738340840436,0.12549,238.33,238.21,0.03]
[1738340840620,0.77611872,238.32,238.21,0.65951773]
[1738340841238,0.77611872,238.32,238.22,4.32329]
[1738340841548,0.77611872,238.34,238.23,0.62947075]
[1738340841918,0.77611872,238.34,238.22,4.1978]
[1738340841919,0.12549,238.33,238.22,4.1978]
[1738340842125,6.048,238.35,238.21,0.03]
[1738340842126,0.12549,238.31,238.21,0.03]
[1738340842342,0.77611872,238.3,238.21,0.03]
[1738340842518,0.12549,238.29,238.21,0.03]
[1738340842719,0.77611872,238.28,238.21,0.03]
[1738340842920,0.12549,238.27,238.21,0.03]
[1738340843219,0.77611872,238.26,238.21,0.03]
[1738340844146,0.90160872,238.31,238.21,0.03]
[1738340845924,0.12549,238.3,238.21,0.03]
[1738340846230,0.25098,238.28,238.21,0.03]
[1738340846446,0.77611872,238.27,238.21,0.03]
[1738340847643,0.25098,238.26,238.21,0.03]
[1738340847822,0.77611872,238.25,238.21,0.03]
[1738340849243,7.31059,238.24,238.04,0.62984147]
[1738340849546,0.77611872,238.23,238.05,0.12549]
[1738340849731,0.77611872,238.23,238.06,0.62992605]
[1738340850548,0.77611872,238.23,238.07,4.2004]
[1738340850721,0.77611872,238.23,238.08,0.62994104]
[1738340850925,0.77611872,238.23,238.21,0.03]
[1738340851144,0.77611872,238.23,238.03,0.6299394]
[1738340851534,1.80273657,238.23,238.03,0.6299394]
[1738340851944,1.624,238.22,238.03,0.6299394]
[1738340852151,0.77611872,238.21,238.04,0.63002458]
[1738340852947,0.12549,238.2,238.04,0.63002458]
[1738340853133,0.12549,238.18,238.04,0.63002458]
[1738340853333,0.77611872,238.17,238.05,0.62989437]
[1738340853543,0.12549,238.16,238.06,4.2006]
[1738340853750,0.12549,238.16,238.07,0.62994638]
[1738340853943,0.77611872,238.21,238.07,0.62994638]
[1738340854750,0.77611872,238.21,238.08,4.2002]
[1738340854935,0.77611872,238.21,238.09,0.62987117]
[1738340855331,1.624,238.22,238.09,0.62987117]
[1738340855630,0.35632106,238.21,238.09,0.62987117]
[1738340855830,0.35632106,238.21,238.09,4.82977117]
[1738340856358,0.35632106,238.21,238.06,4.2006]
[1738340856651,0.12549,238.2,238.07,0.62991621]
[1738340856956,0.12549,238.18,238.07,0.62991621]
[1738340857131,0.35632106,238.17,238.07,0.62991621]
[1738340857333,0.35632106,238.17,238.07,4.83011621]
[1738340857653,0.12549,238.16,238.07,4.83011621]
[1738340857854,0.35632106,238.15,238.07,0.62991621]
[1738340858159,0.35632106,238.15,238.02,3.12]
[1738340858160,0.12549,238.16,238.04,4.2009]
[1738340858352,0.12549,238.14,238.04,4.83092378]
[1738340858546,0.12549,238.14,238.03,4.201]
[1738340858753,0.12549,238.12,238.03,4.201]
[1738340859144,0.12549,238.12,238.04,0.63008048]
[1738340859356,0.12549,238.2,238.05,4.2007]
[1738340859661,0.12549,238.18,238.05,4.2007]
[1738340859836,0.12549,238.16,238.01,0.63002632]
[1738340860037,0.35632106,238.15,238.02,4.2013]
[1738340860347,0.35632106,238.21,238.03,0.62997986]
[1738340861136,0.35632106,238.21,238.04,4.2009]
[1738340861361,0.35632106,238.21,238.05,0.62991118]
[1738340862250,0.12549,238.2,238.05,0.62991118]
[1738340862434,0.12549,238.18,238.06,4.2006]
[1738340862638,0.35632106,238.17,238.07,0.62991967]
[1738340863669,0.35632106,238.21,238.08,4.83011392]
[1738340868067,0.12549,238.2,238.08,4.83011392]
[1738340868268,1.624,238.22,238.08,15.33071392]
[1738340871058,0.35632106,238.21,238.08,15.33071392]
[1738340872562,0.35632106,238.21,238.08,4.83011392]
[1738340873066,0.35632106,238.21,238.06,4.2004]
[1738340873259,0.35632106,238.21,238.04,4.2008]
[1738340873465,0.35632106,238.21,238.05,0.63001679]
[1738340873766,0.35632106,238.21,238.03,0.66001679]
[1738340874761,0.35632106,238.21,238.04,0.63005546]
[1738340875746,0.35632106,238.21,238.03,0.66003944]
[1738340875972,6.2118,238.2,238.03,0.03]
[1738340876164,0.12549,238.18,238.03,0.03]
[1738340876481,0.12549,238.16,238.03,0.03]
[1738340876671,0.12549,238.14,238.04,0.63005155]
[1738340876869,0.35632106,238.13,238.03,4.2311]
[1738340877067,0.12549,238.09,238.03,0.03]
[1738340877263,0.48181106,238.09,238.03,0.03]
[1738340879973,1.5112,238.08,238.03,0.03]
[1738340880167,6.5865,238.06,237.97,0.03]
[1738340880354,0.35632106,238.05,237.97,0.03]
[1738340883178,1.579,238.04,237.97,0.03]
[1738340883383,0.35632106,238.03,237.97,0.03]
[1738340883690,0.12549,238.02,237.97,0.03]
[1738340883848,0.35632106,238.01,237.97,0.03]
[1738340884265,0.12549,238.0,237.97,0.03]
[1738340884465,0.35632106,237.99,237.97,0.03]
[1738340884865,0.12549,237.98,237.97,0.03]
[1738340885458,0.48181106,238.03,237.97,0.03]
[1738340885952,0.48181106,238.03,237.85,4.2043]
[1738340886158,0.12549,238.0,237.81,4.205]
[1738340886384,0.12549,237.98,237.81,4.205]
[1738340886568,0.12549,237.98,237.8,0.63051729]
[1738340886569,0.12549,237.96,237.8,4.2051]
[1738340886876,0.12549,237.92,237.79,0.03]
[1738340887077,0.25098,237.88,237.79,0.03]
[1738340887376,6.2083,237.89,237.79,0.03]
[1738340887377,0.25098,237.86,237.79,0.03]
[1738340887586,0.25098,237.84,237.79,0.03]
[1738340887795,0.25098,237.82,237.73,0.03]
[1738340888091,0.25098,237.8,237.73,0.03]
[1738340888255,0.25098,237.78,237.73,0.03]
[1738340888454,0.25098,237.76,237.73,0.03]
[1738340888676,0.35632106,237.75,237.73,0.03]
[1738340888877,1.6211,237.74,237.73,0.03]
[1738340889055,0.12549,237.73,237.66,6.52605051]
[1738340889263,6.1712,237.71,237.66,6.52605051]
[1738340889461,0.25098,237.69,237.66,6.52605051]
[1738340889675,0.12549,237.67,237.66,6.52605051]
[1738340889895,0.25098,237.67,237.64,13.05422455]
[1738340890182,0.12549,237.65,237.64,13.05422455]
[1738340890479,0.25098,237.65,237.64,13.05422455]
[1738340890666,0.12549,237.65,237.64,13.05422455]
[1738340890860,0.35632106,237.7,237.64,13.05422455]
[1738340891267,0.12549,237.69,237.64,13.05422455]
[1738340891461,0.35632106,237.68,237.64,13.05422455]
[1738340891988,0.35632106,237.68,237.6,4.2087]
[1738340892290,0.35632106,237.7,237.61,0.63115872]
[1738340892671,0.35632106,237.73,237.61,0.63115872]
[1738340892869,0.12549,237.72,237.61,0.63115872]
[1738340893073,0.12549,237.7,237.59,0.2]
[1738340893274,0.12549,237.68,237.59,0.2]
[1738340893476,0.35632106,237.67,237.59,0.2]
[1738340893681,0.35632106,237.73,237.59,0.2]
[1738340893868,0.12549,237.72,237.59,0.2]
[1738340894058,0.12549,237.7,237.59,0.2]
[1738340894258,0.35632106,237.69,237.59,0.83127425]
[1738340894464,0.35632106,237.73,237.59,0.83127425]
[1738340894882,0.35632106,237.73,237.59,0.2]
[1738340896667,0.35632106,237.73,237.6,0.63128933]
[1738340896867,0.35632106,237.73,237.59,0.2]
[1738340897082,0.35632106,237.73,237.59,5.04013382]
[1738340897791,0.12549,237.72,237.59,5.04013382]
[1738340898109,0.35632106,237.73,237.6,1.0]
[1738340898276,6.2201,237.77,237.62,1.0]
[1738340898469,0.35632106,237.76,237.63,0.63099708]
[1738340898970,0.12549,237.75,237.63,0.63099708]
[1738340899175,0.35632106,237.76,237.63,4.83909708]
[1738340899601,0.12549,237.75,237.63,4.83909708]
[1738340899772,0.35632106,237.74,237.63,4.83909708]
[1738340900473,0.063,237.73,237.63,4.83909708]
[1738340901081,0.35632106,237.72,237.63,0.63099708]
[1738340901282,0.35632106,237.72,237.64,0.63114608]
[1738340901504,0.063,237.73,237.64,0.63114608]
[1738340902366,0.063,237.73,237.65,0.63095028]
[1738340902769,0.063,237.73,237.66,1.0]
[1738340902993,0.063,237.73,237.68,0.12549]
[1738340903193,0.063,237.73,237.69,4.83793605]
[1738340903770,0.063,237.73,237.69,16.35583605]
[1738340903975,0.063,237.73,237.7,1.12549]
[1738340904175,0.063,237.73,237.71,0.63072343]
[1738340904593,0.063,237.73,237.67,4.2073]
[1738340904787,0.063,237.73,237.68,0.63098664]
[1738340904992,0.063,237.73,237.69,4.2071]
[1738340905275,0.063,237.73,237.7,0.63091989]
[1738340906483,0.063,237.73,237.71,0.63088815]
[1738340907091,0.063,237.73,237.7,0.63090399]
[1738340907293,0.063,237.73,237.67,4.83834085]
[1738340907491,0.063,237.73,237.67,0.63094085]
[1738340907812,0.063,237.73,237.67,4.83834085]
[1738340908385,0.063,237.73,237.63,1.63103343]
[1738340909095,0.063,237.73,237.64,4.2079]
[1738340909410,0.063,237.73,237.65,0.63094879]
[1738340910185,0.063,237.73,237.67,0.12549]
[1738340910400,0.063,237.73,237.68,0.63082824]
[1738340910796,7.60161106,237.88,237.68,0.63082824]
[1738340911731,7.60161106,237.88,237.67,0.63095342]
[1738340912084,7.60161106,237.88,237.67,4.83825342]
[1738340912484,1.0,237.87,237.67,4.2073]
[1738340912698,6.1112,237.84,237.64,4.208]
[1738340913197,6.1112,237.84,237.65,0.63110442]
[1738340913828,1.5341,237.83,237.65,1.63110442]
[1738340914109,1.5341,237.83,237.65,3.22730442]
[1738340914319,1.5341,237.83,237.66,15.7268]
[1738340914510,1.5341,237.83,237.67,0.63086143]
[1738340915416,1.5341,237.83,237.68,14.7256]
[1738340915597,1.5341,237.83,237.69,0.63085439]
[1738340916327,1.5341,237.83,237.66,4.2075]
[1738340916545,1.5341,237.83,237.67,0.63100896]
[1738340917018,1.5341,237.83,237.64,4.2079]
[1738340917199,1.5341,237.83,237.63,4.2082]
[1738340917512,1.5341,237.83,237.64,0.63108804]
[1738340918700,1.5341,237.83,237.65,4.2078]
[1738340919012,1.5341,237.83,237.66,0.63108803]
[1738340919923,1.5341,237.83,237.67,4.2075]
[1738340920303,1.5341,237.83,237.64,4.208]
[1738340920495,1.5341,237.83,237.65,0.63107728]
[1738340921836,1.5341,237.83,237.65,4.83877728]
[1738340923018,1.5341,237.83,237.65,10.94997728]
[1738340924316,1.5341,237.83,237.64,4.208]
[1738340924730,1.5341,237.83,237.65,0.63110599]
[1738340925725,1.5341,237.83,237.61,14.7298]
[1738340926030,1.5341,237.83,237.65,0.03]
[1738340928009,1.5341,237.83,237.65,4.2378]
[1738340929131,1.5341,237.83,237.65,0.03]
[1738340930929,1.5341,237.83,237.65,0.66110499]
[1738340931612,1.5341,237.83,237.65,0.03]
[1738340932011,1.5341,237.83,237.65,0.66112021]
[1738340932546,6.1112,237.84,237.67,6.5526]
[1738340932747,6.1112,237.84,237.68,0.63087784]
[1738340933026,0.063,237.88,237.69,14.725]
[1738340933232,0.063,237.88,237.7,0.63079382]
[1738340933413,0.063,237.88,237.72,1.6328]
[1738340933617,0.063,237.88,237.73,0.63071817]
[1738340934224,0.063,237.88,237.73,1.63071817]
[1738340934534,0.063,237.88,237.75,1.0]
[1738340934731,0.063,237.88,237.78,1.0]
[1738340934915,0.063,237.88,237.8,21.1864]
[1738340935110,0.063,237.88,237.81,0.63057075]
[1738340935512,0.063,237.88,237.82,1.5239]
[1738340935717,0.063,237.88,237.83,0.63051087]
[1738340936545,0.063,237.88,237.84,4.2045]
[1738340936728,0.063,237.88,237.85,0.63044013]
[1738340937134,0.063,237.97,237.85,0.63044013]
[1738340937533,0.063,237.88,237.85,1.63044013]
[1738340938243,0.063,237.88,237.86,4.2041]
[1738340938422,0.063,237.97,237.87,1.63034634]
[1738340939541,0.063,237.97,237.89,1.0]
[1738340939836,0.063,237.97,237.9,0.63025853]
[1738340941532,0.063,237.97,237.91,4.2032]
[1738340941736,0.063,237.97,237.92,0.63025952]
[1738340942037,0.063,237.97,237.93,3.14]
[1738340942222,0.063,237.97,237.94,2.13899819]
[1738340942635,0.063,237.97,237.95,1.0]
[1738340942938,0.063,237.97,237.96,0.63014411]
[1738340943143,0.063,237.97,237.95,0.6302713]
[1738340943834,0.063,237.97,237.96,4.2023]
[1738340945249,0.0001,237.97,237.96,5.2023]
[1738340946452,0.063,238.07,238.0,1.0]
[1738340946663,0.063,238.07,238.02,1.0]
[1738340946861,0.063,238.07,238.04,4.2009]
[1738340947428,0.063,238.07,238.04,8.4018]
[1738340947824,6.6424,238.19,238.04,9.4018]
[1738340948056,6.6424,238.19,238.05,0.62981862]
[1738340948366,6.6424,238.19,238.06,1.0]
[1738340948571,6.6424,238.19,238.07,0.62983532]
[1738340948737,6.6424,238.19,238.08,3.14]
[1738340948945,6.6424,238.19,238.09,0.62983516]
[1738340949245,0.12549,238.18,238.08,7.3401]
[1738340949426,0.12549,238.18,238.05,0.6298344]
[1738340950049,0.12549,238.18,238.05,4.8305344]
[1738340950263,6.6424,238.19,238.05,4.8305344]
[1738340950633,0.063,238.18,238.05,4.8305344]
[1738340950828,0.063,238.18,238.06,7.96999]
[1738340951033,0.063,238.18,238.07,0.62989239]
[1738340951235,0.063,238.18,238.08,14.7008]
[1738340951456,0.063,238.18,238.09,0.62977063]
[1738340952463,0.063,238.18,238.1,4.1999]
[1738340952753,0.063,238.18,238.11,0.62983713]
[1738340954534,0.063,238.18,238.12,14.6984]
[1738340954738,0.063,238.18,238.13,0.62963287]
[1738340955639,0.063,238.18,238.16,1.0]
[1738340955957,0.063,238.21,238.2,1.0]
[1738340956125,0.063,238.21,238.2,4.74945041]
[1738340956323,0.0001,238.21,238.2,4.87494041]
[1738340956553,0.063,238.29,238.21,1.12549]
[1738340956739,0.063,238.29,238.22,0.62935433]
[1738340957055,0.063,238.29,238.23,4.1976]
[1738340957351,0.063,238.29,238.24,0.62937462]
[1738340959077,0.063,238.29,238.24,4.82677462]
[1738340961462,0.063,238.29,238.24,0.62937462]
[1738340961664,0.063,238.29,238.2,3.12]
[1738340961665,0.063,238.29,238.21,0.62949094]
[1738340961963,0.063,238.29,238.18,0.6295962]
[1738340962371,0.063,238.29,238.17,6.44777002]
[1738340965079,0.063,238.29,238.17,16.94447002]
[1738340965385,0.063,238.29,238.17,17.94447002]
[1738340966254,0.063,238.29,238.18,0.12549]
[1738340966474,0.063,238.29,238.19,0.62941379]
[1738340966686,0.063,238.29,238.19,1.62941379]
[1738340966866,0.063,238.29,238.2,0.12549]
[1738340967069,0.063,238.29,238.21,1.62936916]
[1738340967477,0.063,238.29,238.22,14.6923]
[1738340967662,0.063,238.29,238.23,0.62936285]
[1738340969563,0.063,238.29,238.24,4.1974]
[1738340969764,0.063,238.29,238.25,0.62942723]
[1738340970486,0.063,238.29,238.22,0.62944027]
[1738340970689,0.063,238.29,238.22,3.12]
[1738340970886,0.063,238.29,238.23,0.62953068]
[1738340972477,0.063,238.29,238.24,4.1974]
[1738340972686,0.063,238.29,238.25,0.62939836]
[1738340973070,0.063,238.29,238.22,4.1976]
[1738340973382,0.063,238.29,238.2,7.318]
[1738340973759,0.063,238.29,238.21,0.65961089]
[1738340974779,0.063,238.29,238.21,0.03]
[1738340974967,0.063,238.29,238.21,0.6595985]
[1738340975591,0.063,238.29,238.21,4.8574985]
[1738340977371,0.063,238.29,238.21,0.6595985]
[1738340977992,0.063,238.29,238.21,4.8574985]
[1738340980284,0.063,238.29,238.21,4.8574985]
[1738340980590,0.063,238.29,238.21,15.3523985]
[1738340983191,0.063,238.29,238.22,3.12]
[1738340983498,1.6338,238.29,238.21,0.03]
[1738340985277,1.6338,238.29,238.21,0.65965629]
[1738340985478,0.063,238.29,238.21,0.65965629]
[1738340986895,0.063,238.29,238.22,14.6923]
[1738340987109,0.063,238.29,238.23,0.62938709]
[1738340987994,0.063,238.29,238.24,4.1974]
[1738340988300,0.063,238.29,238.25,0.62945401]
[1738340988595,0.063,238.29,238.22,4.82705105]
[1738340989500,0.063,238.29,238.21,0.03]
[1738340991395,7.2292,238.35,238.21,0.03]
[1738340995308,1.0,238.34,238.21,0.03]
[1738340995482,7.2292,238.35,238.21,0.03]
[1738340997099,1.0,238.34,238.21,0.03]
[1738340997903,7.2292,238.35,238.21,0.03]
[1738341000597,0.12549,238.34,238.21,0.03]
[1738341003395,0.12549,238.32,238.21,0.03]
[1738341006296,0.12549,238.33,238.21,0.03]
[1738341007013,0.12549,238.34,238.21,0.03]
[1738341007602,0.063,238.32,238.21,0.03]
[1738341009611,0.063,238.32,238.21,0.65959194]
[1738341010113,0.063,238.32,238.22,1.5868]
[1738341010312,0.063,238.32,238.23,0.62950112]
[1738341011316,0.063,238.32,238.24,14.691]
[1738341011501,0.063,238.32,238.25,0.62932981]
[1738341012115,0.063,238.32,238.26,6.556]
[1738341012426,0.063,238.32,238.27,5.38512475]
[1738341013124,0.063,238.32,238.28,4.1967]
[1738341013326,0.063,238.32,238.29,0.62921742]
[1738341013696,0.063,238.47,238.29,0.62921742]
[1738341014113,0.063,238.47,238.33,0.12549]
[1738341014323,0.063,238.47,238.35,0.12549]
[1738341014618,0.063,238.47,238.36,0.62900638]
[1738341014994,0.063,238.47,238.32,0.62911102]
[1738341015202,0.063,238.47,238.33,14.6854]
[1738341015402,0.063,238.47,238.35,0.12549]
[1738341015703,0.063,238.47,238.36,0.62899646]